[Event "*** Titled Tuesday 3|2 Blitz"]
[Site "Chess.com"]
[Date "2016.02.02"]
[Round "5"]
[White "AnthonyWirig"]
[Black "Gabrielian_Artur"]
[Result "1-0"]
[WhiteElo "2535"]
[BlackElo "2481"]
[TimeControl "180+2"]
[EndTime "12:04:55 PST"]
[Termination "AnthonyWirig won by resignation"]

1. e4 {[%clk 0:03:01.9]} 1... c5 {[%clk 0:02:09.4]} 2. Nf3 {[%clk 0:02:58.5]}
2... d6 {[%clk 0:02:10.8]} 3. d4 {[%clk 0:02:58.6]} 3... cxd4 {[%clk 0:02:11.7]}
4. Nxd4 {[%clk 0:03:00.5]} 4... Nf6 {[%clk 0:02:11.6]} 5. Nc3 {[%clk 0:03:02.1]}
5... a6 {[%clk 0:02:11.9]} 6. f4 {[%clk 0:03:03.7]} 6... e6 {[%clk 0:02:12.4]}
7. Qf3 {[%clk 0:03:03.4]} 7... Qc7 {[%clk 0:02:13.6]} 8. g4 {[%clk 0:03:03.5]}
8... Nc6 {[%clk 0:02:14.1]} 9. Nxc6 {[%clk 0:03:02.5]} 9... bxc6 {[%clk
0:02:15.1]} 10. g5 {[%clk 0:03:03.6]} 10... Nd7 {[%clk 0:02:16.5]} 11. b3 {[%clk
0:02:52.8]} 11... g6 {[%clk 0:02:16.2]} 12. Bb2 {[%clk 0:02:48.7]} 12... Bg7
{[%clk 0:02:17.6]} 13. O-O-O {[%clk 0:02:29.3]} 13... O-O {[%clk 0:02:17.8]} 14.
h4 {[%clk 0:02:29.8]} 14... c5 {[%clk 0:01:57]} 15. h5 {[%clk 0:02:28.3]} 15...
Re8 {[%clk 0:01:51.7]} 16. hxg6 {[%clk 0:02:26.2]} 16... fxg6 {[%clk 0:01:53]}
17. f5 {[%clk 0:02:14.3]} 17... Ne5 {[%clk 0:01:39.2]} 18. Qh3 {[%clk
0:02:13.3]} 18... Bf8 {[%clk 0:01:39]} 19. fxg6 {[%clk 0:02:04.3]} 19... Nxg6
{[%clk 0:01:37.5]} 20. e5 {[%clk 0:02:05.1]} 20... d5 {[%clk 0:01:26.9]} 21. Bd3
{[%clk 0:02:06]} 21... Qg7 {[%clk 0:01:27.5]} 22. Rdf1 {[%clk 0:01:52]} 22...
Ra7 {[%clk 0:01:28.3]} 23. Rf6 {[%clk 0:01:40.6]} 23... Nxe5 {[%clk 0:01:27.6]}
24. Kb1 {[%clk 0:01:10.8]} 24... Nxd3 {[%clk 0:01:28.4]} 25. Qxd3 {[%clk
0:01:12.7]} 25... Qxg5 {[%clk 0:01:24.4]} 26. Rf3 {[%clk 0:01:07.3]} 26... Rg7
{[%clk 0:01:20]} 27. Ne2 {[%clk 0:00:38.3]} 27... c4 {[%clk 0:00:49.3]} 28. Qd1
{[%clk 0:00:34.3]} 28... cxb3 {[%clk 0:00:35.4]} 29. axb3 {[%clk 0:00:34.1]}
29... Rg6 {[%clk 0:00:36.3]} 30. Rg3 {[%clk 0:00:26.3]} 30... Qxg3 {[%clk
0:00:19.9]} 31. Nxg3 {[%clk 0:00:26.5]} 31... Rxg3 {[%clk 0:00:21.1]} 32. Qd4
{[%clk 0:00:22.7]} 32... Bg7 {[%clk 0:00:21.2]} 33. Qh4 {[%clk 0:00:24.2]} 33...
Bxb2 {[%clk 0:00:16.6]} 34. Qxh7+ {[%clk 0:00:24.9]} 34... Kf8 {[%clk
0:00:17.4]} 35. Rf1+ {[%clk 0:00:26.4]} 1-0

[Event "*** Titled Tuesday 3|2 Blitz"]
[Site "Chess.com"]
[Date "2016.02.02"]
[Round "5"]
[White "BahadirOzen"]
[Black "Hikaru"]
[Result "0-1"]
[WhiteElo "2521"]
[BlackElo "2863"]
[TimeControl "180+2"]
[EndTime "12:05:10 PST"]
[Termination "Hikaru won by resignation"]

1. d4 {[%clk 0:03:01.9]} 1... g6 {[%clk 0:02:59.5]} 2. Nf3 {[%clk 0:02:59.1]}
2... f5 {[%clk 0:03:00.4]} 3. h4 {[%clk 0:02:57.9]} 3... Nf6 {[%clk 0:02:58.5]}
4. Nc3 {[%clk 0:02:50.7]} 4... d6 {[%clk 0:02:59]} 5. h5 {[%clk 0:02:49.9]} 5...
Nxh5 {[%clk 0:02:35.2]} 6. e4 {[%clk 0:02:50.5]} 6... Nf6 {[%clk 0:02:26.8]} 7.
Bd3 {[%clk 0:02:49]} 7... e6 {[%clk 0:02:18.1]} 8. Qe2 {[%clk 0:02:29.7]} 8...
Be7 {[%clk 0:02:14.6]} 9. exf5 {[%clk 0:02:09.1]} 9... exf5 {[%clk 0:02:14.2]}
10. Bh6 {[%clk 0:01:54.6]} 10... Rg8 {[%clk 0:02:15]} 11. O-O-O {[%clk
0:01:54.4]} 11... d5 {[%clk 0:02:16.2]} 12. Rde1 {[%clk 0:01:49.4]} 12... c6
{[%clk 0:01:48.2]} 13. Bf4 {[%clk 0:01:24.6]} 13... Kf8 {[%clk 0:01:22.8]} 14.
Ng5 {[%clk 0:01:23.7]} 14... h5 {[%clk 0:01:20.8]} 15. Ne6+ {[%clk 0:01:08.7]}
15... Bxe6 {[%clk 0:01:21.7]} 16. Qxe6 {[%clk 0:01:10.6]} 16... Rh8 {[%clk
0:01:07.7]} 17. Bg5 {[%clk 0:01:02.2]} 17... Nbd7 {[%clk 0:00:49.6]} 18. Rh3
{[%clk 0:00:48.2]} 18... Ne4 {[%clk 0:00:47.8]} 19. Bxe7+ {[%clk 0:00:49]} 19...
Qxe7 {[%clk 0:00:49.7]} 20. Qxe7+ {[%clk 0:00:50.5]} 20... Kxe7 {[%clk
0:00:51.6]} 21. f3 {[%clk 0:00:52.4]} 21... Nf6 {[%clk 0:00:52.2]} 22. fxe4
{[%clk 0:00:52.9]} 22... dxe4 {[%clk 0:00:54.1]} 23. Bc4 {[%clk 0:00:49.3]}
23... Rad8 {[%clk 0:00:54]} 24. Ne2 {[%clk 0:00:48.4]} 24... Kd6 {[%clk
0:00:50.2]} 25. Rg3 {[%clk 0:00:43.1]} 25... Ng4 {[%clk 0:00:49.6]} 26. Bb3
{[%clk 0:00:39.6]} 26... g5 {[%clk 0:00:45.6]} 27. c4 {[%clk 0:00:39.3]} 27...
f4 {[%clk 0:00:44.4]} 28. c5+ {[%clk 0:00:39.3]} 28... Kc7 {[%clk 0:00:45.2]}
29. Rc3 {[%clk 0:00:33.4]} 29... Rhf8 {[%clk 0:00:44.9]} 30. Bc2 {[%clk
0:00:25.6]} 30... Rde8 {[%clk 0:00:42.2]} 31. Ng1 {[%clk 0:00:23.7]} 31... Ne3
{[%clk 0:00:40.4]} 32. Nh3 {[%clk 0:00:18.5]} 32... g4 {[%clk 0:00:23.3]} 33.
Nf2 {[%clk 0:00:18.7]} 33... Nxc2 {[%clk 0:00:20]} 34. Kxc2 {[%clk 0:00:19.4]}
34... e3 {[%clk 0:00:21.7]} 35. Nd3 {[%clk 0:00:21.1]} 35... f3 {[%clk 0:00:23]}
36. gxf3 {[%clk 0:00:21.4]} 36... gxf3 {[%clk 0:00:24.9]} 37. Ne5 {[%clk
0:00:22]} 37... f2 {[%clk 0:00:25]} 38. Rcxe3 {[%clk 0:00:23.7]} 38... fxe1=Q
{[%clk 0:00:26.4]} 39. Rxe1 {[%clk 0:00:25.6]} 39... Rf2+ {[%clk 0:00:28]} 40.
Kc3 {[%clk 0:00:26]} 40... h4 {[%clk 0:00:29.5]} 41. Rg1 {[%clk 0:00:25.9]}
41... Re7 {[%clk 0:00:30.6]} 42. Rg4 {[%clk 0:00:17.6]} 42... Rh7 {[%clk
0:00:30.8]} 0-1

[Event "*** Titled Tuesday 3|2 Blitz"]
[Site "Chess.com"]
[Date "2016.02.02"]
[Round "5"]
[White "ethylalcohol"]
[Black "Makalexa"]
[Result "0-1"]
[WhiteElo "1721"]
[BlackElo "2071"]
[TimeControl "180+2"]
[EndTime "12:05:10 PST"]
[Termination "Makalexa won on time"]

1. e4 {[%clk 0:03:01.9]} 1... e5 {[%clk 0:02:59.6]} 2. Nf3 {[%clk 0:03:02.2]}
2... Nc6 {[%clk 0:03:00]} 3. Bc4 {[%clk 0:03:01.8]} 3... Bc5 {[%clk 0:02:58.7]}
4. c3 {[%clk 0:03:02.2]} 4... Nf6 {[%clk 0:02:58.1]} 5. d4 {[%clk 0:03:01.6]}
5... exd4 {[%clk 0:02:58.9]} 6. cxd4 {[%clk 0:03:03.5]} 6... Bb4+ {[%clk
0:02:59.6]} 7. Nc3 {[%clk 0:03:04.5]} 7... Nxe4 {[%clk 0:02:58]} 8. O-O {[%clk
0:03:05.5]} 8... Bxc3 {[%clk 0:02:53.4]} 9. d5 {[%clk 0:03:04.8]} 9... Ne5
{[%clk 0:02:54.2]} 10. bxc3 {[%clk 0:02:56.9]} 10... Nxc4 {[%clk 0:02:54.8]} 11.
Qd4 {[%clk 0:02:54.2]} 11... O-O {[%clk 0:02:54.9]} 12. Qxe4 {[%clk 0:02:41.3]}
12... Nd6 {[%clk 0:02:56.8]} 13. Qd4 {[%clk 0:02:40.7]} 13... b6 {[%clk
0:02:49.8]} 14. c4 {[%clk 0:02:24.8]} 14... Qf6 {[%clk 0:02:49.4]} 15. Qxf6
{[%clk 0:02:09.3]} 15... gxf6 {[%clk 0:02:49.7]} 16. Bh6 {[%clk 0:02:08.3]}
16... Re8 {[%clk 0:02:46.4]} 17. Rac1 {[%clk 0:02:07.8]} 17... Ba6 {[%clk
0:02:45.7]} 18. Nd2 {[%clk 0:01:40.5]} 18... Re2 {[%clk 0:02:40.9]} 19. Rfd1
{[%clk 0:01:31.7]} 19... Nf5 {[%clk 0:02:18.8]} 20. Bf4 {[%clk 0:01:23.5]} 20...
d6 {[%clk 0:02:18.9]} 21. Nf3 {[%clk 0:01:11.6]} 21... Rae8 {[%clk 0:02:12.1]}
22. g4 {[%clk 0:01:01.4]} 22... R2e4 {[%clk 0:02:10.9]} 23. gxf5 {[%clk
0:00:30.4]} 23... Rxf4 {[%clk 0:02:11.5]} 24. Kg2 {[%clk 0:00:26.8]} 24... Re2
{[%clk 0:01:50.5]} 25. Kg3 {[%clk 0:00:19]} 25... Rxf5 {[%clk 0:01:45.2]} 26.
Nd4 {[%clk 0:00:17.7]} 26... Rg5+ {[%clk 0:01:45.3]} 27. Kf3 {[%clk 0:00:15.1]}
27... Rxa2 {[%clk 0:01:44.8]} 28. h4 {[%clk 0:00:12.9]} 28... Ra3+ {[%clk
0:01:45.3]} 29. Kf4 {[%clk 0:00:09.5]} 29... Rg2 {[%clk 0:01:42.2]} 30. Rg1
{[%clk 0:00:09.4]} 30... Rxg1 {[%clk 0:01:40]} 31. Rxg1+ {[%clk 0:00:11.3]}
31... Kf8 {[%clk 0:01:41.4]} 32. Kf5 {[%clk 0:00:10.1]} 32... Bxc4 {[%clk
0:01:36.1]} 33. Kxf6 {[%clk 0:00:09]} 33... Bxd5 {[%clk 0:00:31.3]} 34. Rg7
{[%clk 0:00:05]} 34... Rd3 {[%clk 0:00:22.8]} 35. Rxh7 {[%clk 0:00:05.2]} 35...
Ke8 {[%clk 0:00:23.5]} 36. Rh8+ {[%clk 0:00:03.3]} 36... Kd7 {[%clk 0:00:24.6]}
37. Nf5 {[%clk 0:00:02.5]} 37... Rf3 {[%clk 0:00:24.1]} 0-1

[Event "*** Titled Tuesday 3|2 Blitz"]
[Site "Chess.com"]
[Date "2016.02.02"]
[Round "5"]
[White "Mornar1951"]
[Black "gmjoey1"]
[Result "0-1"]
[WhiteElo "2604"]
[BlackElo "2482"]
[TimeControl "180+2"]
[EndTime "12:05:50 PST"]
[Termination "gmjoey1 won on time"]

1. Nf3 {[%clk 0:02:45]} 1... Nf6 {[%clk 0:02:53.9]} 2. c4 {[%clk 0:02:45.5]}
2... e6 {[%clk 0:02:54.3]} 3. g3 {[%clk 0:02:46.1]} 3... b6 {[%clk 0:02:54.4]}
4. Bg2 {[%clk 0:02:47.7]} 4... Bb7 {[%clk 0:02:56]} 5. O-O {[%clk 0:02:48.5]}
5... c5 {[%clk 0:02:57.5]} 6. Nc3 {[%clk 0:02:49.2]} 6... Be7 {[%clk 0:02:58.4]}
7. d4 {[%clk 0:02:50.8]} 7... cxd4 {[%clk 0:02:59.9]} 8. Qxd4 {[%clk 0:02:52.7]}
8... d6 {[%clk 0:03:00.1]} 9. Rd1 {[%clk 0:02:51.8]} 9... a6 {[%clk 0:02:59.4]}
10. Bg5 {[%clk 0:02:51.9]} 10... Nbd7 {[%clk 0:02:56.7]} 11. Bxf6 {[%clk
0:02:30.2]} 11... Nxf6 {[%clk 0:02:55.9]} 12. Ng5 {[%clk 0:02:31.3]} 12... Bxg2
{[%clk 0:02:54.8]} 13. Kxg2 {[%clk 0:02:33.2]} 13... Qc7 {[%clk 0:02:53.6]} 14.
Nge4 {[%clk 0:02:32.3]} 14... Rd8 {[%clk 0:02:51.3]} 15. Rac1 {[%clk 0:02:30.5]}
15... O-O {[%clk 0:02:47.7]} 16. b3 {[%clk 0:02:27.2]} 16... Qc6 {[%clk
0:02:43.1]} 17. f3 {[%clk 0:02:26.3]} 17... Rd7 {[%clk 0:02:39.1]} 18. Qd3
{[%clk 0:02:15.5]} 18... Rfd8 {[%clk 0:02:30.6]} 19. a4 {[%clk 0:02:09.9]} 19...
Qb7 {[%clk 0:02:29.9]} 20. Qe3 {[%clk 0:01:48.8]} 20... h6 {[%clk 0:02:26.2]}
21. Rd3 {[%clk 0:01:48.8]} 21... Nxe4 {[%clk 0:02:23.8]} 22. Qxe4 {[%clk
0:01:45.4]} 22... d5 {[%clk 0:02:13.4]} 23. cxd5 {[%clk 0:01:38.1]} 23... exd5
{[%clk 0:02:15.3]} 24. Qg4 {[%clk 0:01:17.9]} 24... Bf6 {[%clk 0:02:11.1]} 25.
Rcd1 {[%clk 0:01:13.1]} 25... Bxc3 {[%clk 0:02:09.3]} 26. Rxc3 {[%clk
0:01:13.6]} 26... b5 {[%clk 0:02:07.6]} 27. Rcd3 {[%clk 0:01:10]} 27... g6
{[%clk 0:01:56.9]} 28. Rd4 {[%clk 0:00:57.6]} 28... h5 {[%clk 0:01:45.7]} 29.
Qf4 {[%clk 0:00:57]} 29... bxa4 {[%clk 0:01:46.2]} 30. bxa4 {[%clk 0:00:58.5]}
30... Qc6 {[%clk 0:01:47.2]} 31. R1d2 {[%clk 0:00:56.1]} 31... Qe6 {[%clk
0:01:37.3]} 32. h3 {[%clk 0:00:55.3]} 32... a5 {[%clk 0:01:30.9]} 33. g4 {[%clk
0:00:56.4]} 33... hxg4 {[%clk 0:01:27.6]} 34. hxg4 {[%clk 0:00:58.3]} 34... Kg7
{[%clk 0:01:28]} 35. Kf2 {[%clk 0:00:50.4]} 35... Re8 {[%clk 0:01:18.1]} 36.
R4d3 {[%clk 0:00:42.3]} 36... Ree7 {[%clk 0:01:08.5]} 37. Re3 {[%clk 0:00:40.7]}
37... Qb6 {[%clk 0:01:05.3]} 38. Qd4+ {[%clk 0:00:40.4]} 38... Qxd4 {[%clk
0:01:02.2]} 39. Rxd4 {[%clk 0:00:42.3]} 39... Rxe3 {[%clk 0:00:56.9]} 40. Kxe3
{[%clk 0:00:44.2]} 40... Kf6 {[%clk 0:00:58.4]} 41. f4 {[%clk 0:00:41.3]} 41...
Ke6 {[%clk 0:00:58.5]} 42. Kf3 {[%clk 0:00:34.2]} 42... Rb7 {[%clk 0:00:58.4]}
43. e3 {[%clk 0:00:34.4]} 43... Rb3 {[%clk 0:00:52.2]} 44. Ke2 {[%clk
0:00:30.5]} 44... f6 {[%clk 0:00:48.6]} 45. Kf3 {[%clk 0:00:26.8]} 45... Kd6
{[%clk 0:00:48.1]} 46. Ke2 {[%clk 0:00:19.2]} 46... Kc5 {[%clk 0:00:48.8]} 47.
Kd2 {[%clk 0:00:20.6]} 47... f5 {[%clk 0:00:41.6]} 48. gxf5 {[%clk 0:00:20.9]}
48... gxf5 {[%clk 0:00:43.5]} 49. Ke2 {[%clk 0:00:20]} 49... Rb4 {[%clk
0:00:44.3]} 50. Kd3 {[%clk 0:00:20.1]} 50... Rxd4+ {[%clk 0:00:45]} 51. exd4+
{[%clk 0:00:22]} 51... Kb4 {[%clk 0:00:46.5]} 0-1

[Event "*** Titled Tuesday 3|2 Blitz"]
[Site "Chess.com"]
[Date "2016.02.02"]
[Round "5"]
[White "FairChess_on_YouTube"]
[Black "Dr-Bassem"]
[Result "1/2-1/2"]
[WhiteElo "2732"]
[BlackElo "2469"]
[TimeControl "180+2"]
[EndTime "12:05:52 PST"]
[Termination "Game drawn by repetition"]

1. e4 {[%clk 0:03:01.9]} 1... e5 {[%clk 0:02:59.9]} 2. Nf3 {[%clk 0:03:02.8]}
2... Nc6 {[%clk 0:03:01.2]} 3. Bb5 {[%clk 0:03:03.2]} 3... a6 {[%clk 0:03:02.5]}
4. Ba4 {[%clk 0:03:04]} 4... Nf6 {[%clk 0:03:03.9]} 5. O-O {[%clk 0:03:04.9]}
5... Be7 {[%clk 0:03:04.7]} 6. Bxc6 {[%clk 0:03:05.3]} 6... dxc6 {[%clk
0:03:04.8]} 7. d3 {[%clk 0:03:06.9]} 7... Nd7 {[%clk 0:03:04.3]} 8. Nbd2 {[%clk
0:03:07.9]} 8... O-O {[%clk 0:03:05.1]} 9. Nc4 {[%clk 0:03:08.7]} 9... f6 {[%clk
0:03:04.4]} 10. Nh4 {[%clk 0:03:09.9]} 10... Re8 {[%clk 0:02:56.6]} 11. Nf5
{[%clk 0:03:04.6]} 11... Bf8 {[%clk 0:02:53.7]} 12. f4 {[%clk 0:02:40.2]} 12...
exf4 {[%clk 0:02:49.3]} 13. Bxf4 {[%clk 0:02:40.5]} 13... Nc5 {[%clk 0:02:46.9]}
14. Be3 {[%clk 0:02:29.6]} 14... Be6 {[%clk 0:02:36.5]} 15. b3 {[%clk
0:02:26.8]} 15... Qd7 {[%clk 0:02:32]} 16. Kh1 {[%clk 0:02:24.4]} 16... Kh8
{[%clk 0:02:24.5]} 17. Qe1 {[%clk 0:02:05.8]} 17... Rad8 {[%clk 0:02:09.8]} 18.
Qg3 {[%clk 0:02:04.7]} 18... b6 {[%clk 0:02:01.2]} 19. h3 {[%clk 0:01:55.2]}
19... a5 {[%clk 0:02:02.1]} 20. a4 {[%clk 0:01:52.2]} 20... Na6 {[%clk
0:02:02.6]} 21. Bd2 {[%clk 0:01:44]} 21... Nb4 {[%clk 0:01:48.2]} 22. Rac1
{[%clk 0:01:31.2]} 22... c5 {[%clk 0:01:41.5]} 23. Nfe3 {[%clk 0:01:22.7]} 23...
Nc6 {[%clk 0:01:38.1]} 24. Bc3 {[%clk 0:01:19.7]} 24... Nd4 {[%clk 0:01:38.3]}
25. Rf2 {[%clk 0:01:21]} 25... Bd6 {[%clk 0:01:22.6]} 26. Qh4 {[%clk 0:01:15.7]}
26... Qe7 {[%clk 0:00:37.9]} 27. Rcf1 {[%clk 0:01:10.8]} 27... Bxc4 {[%clk
0:00:28.6]} 28. Nxc4 {[%clk 0:01:08]} 28... Be5 {[%clk 0:00:28]} 29. Nxe5 {[%clk
0:00:54.5]} 29... Qxe5 {[%clk 0:00:28.3]} 30. Qg4 {[%clk 0:00:53]} 30... Qe6
{[%clk 0:00:28.2]} 31. Qxe6 {[%clk 0:00:50.8]} 31... Rxe6 {[%clk 0:00:28.8]} 32.
g4 {[%clk 0:00:49.9]} 32... h6 {[%clk 0:00:30.3]} 33. Kg2 {[%clk 0:00:50.5]}
33... Kh7 {[%clk 0:00:30.3]} 34. h4 {[%clk 0:00:33.8]} 34... Re5 {[%clk
0:00:29.4]} 35. Bxd4 {[%clk 0:00:25.8]} 35... cxd4 {[%clk 0:00:29.6]} 36. Rf5
{[%clk 0:00:27.4]} 36... Rde8 {[%clk 0:00:30.6]} 37. Kg3 {[%clk 0:00:20.8]}
37... Kg6 {[%clk 0:00:28.4]} 38. Rc1 {[%clk 0:00:12.6]} 38... R8e6 {[%clk
0:00:24.8]} 39. Kf4 {[%clk 0:00:12.3]} 39... Kf7 {[%clk 0:00:21.7]} 40. h5
{[%clk 0:00:11.6]} 40... Ke7 {[%clk 0:00:19.4]} 41. c4 {[%clk 0:00:08.1]} 41...
c5 {[%clk 0:00:18]} 42. Rg1 {[%clk 0:00:07.6]} 42... Kf7 {[%clk 0:00:18]} 43.
Kg3 {[%clk 0:00:08.7]} 43... Rxf5 {[%clk 0:00:18.2]} 44. gxf5 {[%clk 0:00:08.8]}
44... Re5 {[%clk 0:00:19.3]} 45. Kf4 {[%clk 0:00:10.3]} 45... Kf8 {[%clk
0:00:20.5]} 46. Rb1 {[%clk 0:00:10.4]} 46... Kf7 {[%clk 0:00:21.8]} 47. Rg1
{[%clk 0:00:11.1]} 47... Kf8 {[%clk 0:00:23.1]} 48. Kf3 {[%clk 0:00:12.4]} 48...
Kf7 {[%clk 0:00:24.5]} 49. Kf4 {[%clk 0:00:13.5]} 49... Kf8 {[%clk 0:00:25.9]}
1/2-1/2

[Event "*** Titled Tuesday 3|2 Blitz"]
[Site "Chess.com"]
[Date "2016.02.02"]
[Round "5"]
[White "ZEN-22"]
[Black "VMikhalevski"]
[Result "1-0"]
[WhiteElo "2351"]
[BlackElo "2473"]
[TimeControl "180+2"]
[EndTime "12:07:03 PST"]
[Termination "ZEN-22 won by resignation"]

1. d3 {[%clk 0:03:01.9]} 1... d5 {[%clk 0:02:40.7]} 2. g3 {[%clk 0:03:03.8]}
2... Nf6 {[%clk 0:02:38.7]} 3. Bg2 {[%clk 0:03:04.8]} 3... g6 {[%clk 0:02:39]}
4. Nf3 {[%clk 0:03:00.7]} 4... Bg7 {[%clk 0:02:39.4]} 5. c4 {[%clk 0:03:02.3]}
5... dxc4 {[%clk 0:02:39]} 6. Qa4+ {[%clk 0:03:02.6]} 6... Bd7 {[%clk
0:02:37.1]} 7. Qxc4 {[%clk 0:03:03.9]} 7... O-O {[%clk 0:02:29.7]} 8. Nc3 {[%clk
0:02:59.9]} 8... Bc6 {[%clk 0:02:26.1]} 9. O-O {[%clk 0:03:00.4]} 9... Nbd7
{[%clk 0:02:26.2]} 10. a4 {[%clk 0:02:56.8]} 10... a5 {[%clk 0:02:22.3]} 11. d4
{[%clk 0:02:51.9]} 11... Nb6 {[%clk 0:02:22.1]} 12. Qd3 {[%clk 0:02:53.1]} 12...
Nbd5 {[%clk 0:02:21]} 13. Re1 {[%clk 0:02:46.5]} 13... Nb4 {[%clk 0:02:10.3]}
14. Qd2 {[%clk 0:02:47.4]} 14... Ne4 {[%clk 0:02:08.5]} 15. Nxe4 {[%clk
0:02:43.3]} 15... Bxe4 {[%clk 0:02:09.4]} 16. b3 {[%clk 0:02:44]} 16... Nc2
{[%clk 0:02:06.1]} 17. Bb2 {[%clk 0:02:35.9]} 17... Nxa1 {[%clk 0:02:00.5]} 18.
Rxa1 {[%clk 0:02:29.6]} 18... Bd5 {[%clk 0:01:51.2]} 19. Qc3 {[%clk 0:02:24.6]}
19... Ra6 {[%clk 0:01:50.5]} 20. Re1 {[%clk 0:02:24.8]} 20... Rb6 {[%clk
0:01:49.1]} 21. Nd2 {[%clk 0:02:21.9]} 21... Bxg2 {[%clk 0:01:48.2]} 22. Kxg2
{[%clk 0:02:23.8]} 22... c5 {[%clk 0:01:40]} 23. Qxc5 {[%clk 0:02:21.7]} 23...
Rc6 {[%clk 0:01:40.9]} 24. Qb5 {[%clk 0:02:13.1]} 24... Rc2 {[%clk 0:01:41.3]}
25. Nc4 {[%clk 0:02:13.7]} 25... e6 {[%clk 0:01:31.3]} 26. e4 {[%clk 0:02:13.7]}
26... Qf6 {[%clk 0:01:15.8]} 27. Rf1 {[%clk 0:02:14.5]} 27... Rc8 {[%clk
0:01:15.6]} 28. Nd6 {[%clk 0:02:07]} 28... Rd8 {[%clk 0:01:12.2]} 29. e5 {[%clk
0:02:07.3]} 29... Qe7 {[%clk 0:01:09.9]} 30. Ba3 {[%clk 0:02:08.4]} 30... Qd7
{[%clk 0:01:10.1]} 31. Qxa5 {[%clk 0:02:08.9]} 31... Qc6+ {[%clk 0:00:55.6]} 32.
Kg1 {[%clk 0:02:09.4]} 32... b6 {[%clk 0:00:56.3]} 33. Qa7 {[%clk 0:02:07.5]}
33... Qc7 {[%clk 0:00:51.8]} 34. Qxc7 {[%clk 0:02:04.2]} 34... Rxc7 {[%clk
0:00:51.4]} 35. Nc4 {[%clk 0:02:03.5]} 35... Rxd4 {[%clk 0:00:41.5]} 36. Nxb6
{[%clk 0:02:01.9]} 36... Rd3 {[%clk 0:00:41.5]} 37. Bd6 {[%clk 0:02:02.4]} 37...
Rc6 {[%clk 0:00:39]} 38. Nc4 {[%clk 0:02:03.4]} 38... Ra6 {[%clk 0:00:32.7]} 39.
Rb1 {[%clk 0:02:02.7]} 39... Rc3 {[%clk 0:00:30.4]} 40. a5 {[%clk 0:02:02.7]}
40... Bf8 {[%clk 0:00:27.6]} 41. Bc7 {[%clk 0:01:50.7]} 41... Bb4 {[%clk
0:00:26.2]} 42. Bb6 {[%clk 0:01:50.9]} 42... Rd3 {[%clk 0:00:23.9]} 43. Kf1
{[%clk 0:01:50.7]} 43... Rd5 {[%clk 0:00:23.3]} 44. Ke2 {[%clk 0:01:50.5]} 44...
g5 {[%clk 0:00:23.6]} 45. f4 {[%clk 0:01:49.4]} 45... g4 {[%clk 0:00:21]} 46.
Ke3 {[%clk 0:01:49.3]} 46... h5 {[%clk 0:00:20.1]} 47. Ke4 {[%clk 0:01:50.3]}
47... Rd7 {[%clk 0:00:20.2]} 48. f5 {[%clk 0:01:50.8]} 48... Ra8 {[%clk
0:00:19.4]} 49. Rf1 {[%clk 0:01:46.8]} 49... Be7 {[%clk 0:00:11.6]} 50. h3
{[%clk 0:01:42.3]} 50... gxh3 {[%clk 0:00:11.3]} 51. Rh1 {[%clk 0:01:43.4]}
51... exf5+ {[%clk 0:00:12.9]} 52. Kxf5 {[%clk 0:01:44.1]} 52... Rd3 {[%clk
0:00:13.6]} 53. Rxh3 {[%clk 0:01:44.9]} 53... Rf3+ {[%clk 0:00:14.4]} 54. Ke4
{[%clk 0:01:45.2]} 54... Rxb3 {[%clk 0:00:15.2]} 55. Nd6 {[%clk 0:01:45.8]}
55... Rb4+ {[%clk 0:00:13.4]} 56. Kd5 {[%clk 0:01:46.4]} 56... Rg4 {[%clk
0:00:13]} 57. Rxh5 {[%clk 0:01:44]} 57... Rxg3 {[%clk 0:00:13.7]} 58. Nf5 {[%clk
0:01:45.2]} 58... Rd3+ {[%clk 0:00:12.8]} 59. Ke4 {[%clk 0:01:40.6]} 59... Rd7
{[%clk 0:00:13.5]} 60. Rh3 {[%clk 0:01:31.2]} 60... Bd8 {[%clk 0:00:11.6]} 61.
Rg3+ {[%clk 0:01:31.5]} 61... Kh7 {[%clk 0:00:11.9]} 62. Rg7+ {[%clk 0:01:30.5]}
62... Kh8 {[%clk 0:00:12.2]} 63. e6 {[%clk 0:01:30.5]} 63... fxe6 {[%clk
0:00:07]} 64. Rxd7 {[%clk 0:01:31.4]} 64... exf5+ {[%clk 0:00:07.8]} 65. Kxf5
{[%clk 0:01:32.3]} 65... Bh4 {[%clk 0:00:07.7]} 66. Kg6 {[%clk 0:01:32]} 66...
Be1 {[%clk 0:00:05.6]} 67. Bd4+ {[%clk 0:01:26.3]} 67... Kg8 {[%clk 0:00:06.2]}
68. Rg7+ {[%clk 0:01:27.9]} 68... Kf8 {[%clk 0:00:07]} 69. Bc5+ {[%clk
0:01:29.5]} 69... Ke8 {[%clk 0:00:07]} 70. Rg8+ {[%clk 0:01:31]} 70... Kd7
{[%clk 0:00:08.6]} 71. Rxa8 {[%clk 0:01:32.7]} 71... Kc6 {[%clk 0:00:09.9]} 72.
Bb6 {[%clk 0:01:32.8]} 72... Kb5 {[%clk 0:00:10.3]} 73. Rg8 {[%clk 0:01:34.7]}
73... Ka6 {[%clk 0:00:10]} 74. Kf5 {[%clk 0:01:35.6]} 74... Kb5 {[%clk
0:00:10.7]} 75. Ke6 {[%clk 0:01:37]} 75... Bd2 {[%clk 0:00:11.8]} 76. Kd5 {[%clk
0:01:38.2]} 76... Be1 {[%clk 0:00:12.6]} 77. Rg1 {[%clk 0:01:38.7]} 77... Bd2
{[%clk 0:00:13.2]} 78. Rb1+ {[%clk 0:01:39.5]} 78... Ka6 {[%clk 0:00:13.7]} 79.
Kc6 {[%clk 0:01:41]} 79... Bb4 {[%clk 0:00:14.7]} 80. Bc5 {[%clk 0:01:38.2]}
80... Bc3 {[%clk 0:00:14.5]} 81. Rb7 {[%clk 0:01:39.2]} 1-0